bitfinex/quotes_BTCUSD_20241215
["timestamp","ask_amount","ask_price","bid_price","bid_amount"]
[1734300011847,0.92107466,102800.0,102790.0,8.62e-05]
[1734300012297,0.94081767,102800.0,102790.0,8.62e-05]
[1734300012510,0.90632894,102800.0,102790.0,8.62e-05]
[1734300012724,0.46890602,102800.0,102790.0,8.62e-05]
[1734300014277,0.52739474,102800.0,102790.0,8.62e-05]
[1734300014491,0.70592413,102800.0,102790.0,8.62e-05]
[1734300014906,0.68192414,102800.0,102790.0,8.62e-05]
[1734300015121,0.81267466,102800.0,102790.0,8.62e-05]
[1734300015332,1.07116338,102800.0,102790.0,8.62e-05]
[1734300015588,1.24549741,102800.0,102790.0,8.62e-05]
[1734300015793,1.18700869,102800.0,102790.0,8.62e-05]
[1734300016011,1.12851997,102800.0,102790.0,8.62e-05]
[1734300016219,1.31679038,102800.0,102790.0,8.62e-05]
[1734300016436,1.07613635,102800.0,102790.0,8.62e-05]
[1734300016652,0.90203995,102800.0,102790.0,8.62e-05]
[1734300017093,0.94562346,102800.0,102790.0,8.62e-05]
[1734300018184,0.94562346,102800.0,102790.0,2e-07]
[1734300018441,0.490971,102790.0,102780.0,0.14515771]
[1734300018661,0.67924141,102790.0,102780.0,0.14515771]
[1734300019086,1.06942314,102790.0,102780.0,0.14515771]
[1734300019308,1.19942379,102790.0,102780.0,0.14515771]
[1734300020045,1.19941776,102790.0,102780.0,0.14515771]
[1734300020258,1.29847179,102790.0,102780.0,0.14515771]
[1734300021391,1.06922216,102790.0,102780.0,0.14515771]
[1734300021613,1.28598979,102790.0,102780.0,0.14515771]
[1734300021831,1.19941776,102790.0,102780.0,0.14515771]
[1734300022275,1.0691956,102790.0,102780.0,0.14515771]
[1734300022936,0.97997922,102790.0,102780.0,0.14515771]
[1734300023152,1.0691956,102790.0,102780.0,0.14515771]
[1734300023365,0.90570274,102790.0,102780.0,0.14515771]
[1734300023582,1.00475677,102790.0,102780.0,0.14515771]
[1734300024037,1.00455677,102790.0,102780.0,0.14515771]
[1734300024923,1.17797087,102790.0,102780.0,0.12569871]
[1734300025155,1.17797087,102790.0,102780.0,0.06732171]
[1734300025411,1.17797087,102790.0,102780.0,7.1e-07]
[1734300025642,0.267609,102770.0,102760.0,8.62e-05]
[1734300025862,0.72927941,102770.0,102760.0,0.00025853]
[1734300026543,0.67927941,102770.0,102760.0,0.00025853]
[1734300028295,0.72927941,102770.0,102760.0,0.00025853]
[1734300028517,0.67927941,102770.0,102760.0,0.00025853]
[1734300030785,0.68910705,102770.0,102760.0,0.00025853]
[1734300031631,0.59989067,102770.0,102760.0,0.00025853]
[1734300032640,0.64989067,102770.0,102760.0,0.00025853]
[1734300032883,0.6696986,102770.0,102760.0,0.00025853]
[1734300033333,0.71875263,102770.0,102760.0,0.00025853]
[1734300033799,0.80796901,102770.0,102760.0,0.00025853]
[1734300034032,0.70891498,102770.0,102760.0,0.00025853]
[1734300035644,0.71182223,102770.0,102760.0,0.00025853]
[1734300036061,0.68120148,102770.0,102760.0,0.00025853]
[1734300037517,0.68090148,102770.0,102760.0,0.00025853]
[1734300041445,0.02399999,102750.0,102720.0,0.2281239]
[1734300041651,0.02399999,102750.0,102720.0,0.1501723]
[1734300041652,0.29373003,102740.0,102720.0,0.1501723]
[1734300041949,0.48840703,102740.0,102720.0,0.3448653]
[1734300042365,0.194685,102730.0,102720.0,0.1501723]
[1734300042574,0.09905403,102730.0,102720.0,0.3448763]
[1734300044530,0.29373903,102730.0,102720.0,0.0001723]
[1734300044738,0.29373903,102730.0,102720.0,0.0752723]
[1734300045022,0.29373903,102730.0,102720.0,0.0001723]
[1734300045023,0.53246332,102730.0,102720.0,0.0001723]
[1734300045240,0.42273466,102730.0,102720.0,0.0001723]
[1734300045461,0.55363466,102730.0,102720.0,0.0001723]
[1734300046562,0.70363466,102730.0,102720.0,0.0001723]
[1734300047874,0.71326181,102730.0,102720.0,0.0001723]
[1734300048077,0.76311311,102730.0,102720.0,0.0001723]
[1734300054195,0.76311311,102730.0,102720.0,0.0002586]
[1734300054407,0.76328571,102730.0,102720.0,0.0002586]
[1734300054621,0.69417882,102730.0,102720.0,0.0002586]
[1734300054837,0.79323285,102730.0,102720.0,0.0002586]
[1734300055053,0.79323285,102730.0,102710.0,8.62e-05]
[1734300055054,0.63534404,102720.0,102710.0,8.62e-05]
[1734300055289,0.38815802,102720.0,102710.0,8.62e-05]
[1734300055505,0.38815802,102720.0,102710.0,0.00063436]
[1734300055931,0.34075802,102720.0,102710.0,0.00063436]
[1734300056380,0.09905403,102720.0,102710.0,0.00063436]
[1734300056623,0.09905403,102720.0,102710.0,0.07573436]
[1734300056831,0.09905403,102720.0,102710.0,0.27045736]
[1734300057047,0.09855403,102720.0,102710.0,0.07573436]
[1734300057479,0.09855403,102720.0,102710.0,0.27045736]
[1734300058577,0.09855403,102720.0,102710.0,0.29345736]
[1734300060862,0.09855403,102720.0,102710.0,0.40879741]
[1734300062778,0.09855403,102720.0,102710.0,0.31945737]
[1734300064326,0.09855403,102720.0,102710.0,0.29345736]
[1734300064745,0.09855403,102720.0,102710.0,0.31945737]
[1734300065595,0.0001726,102730.0,102710.0,0.31945737]
[1734300065596,0.0001726,102730.0,102710.0,0.87312741]
[1734300065824,0.09922663,102730.0,102720.0,0.38974405]
[1734300067357,0.09922663,102730.0,102720.0,0.53974405]
[1734300068433,0.09922663,102730.0,102720.0,0.274404]
[1734300068644,0.15161619,102730.0,102710.0,0.27254136]
[1734300068868,0.12205403,102720.0,102710.0,0.19534136]
[1734300069079,0.12205403,102720.0,102710.0,0.00063436]
[1734300069496,0.40835803,102720.0,102710.0,0.00063436]
[1734300069706,0.46545802,102720.0,102710.0,0.00063436]
[1734300070124,0.55479806,102720.0,102710.0,0.00063436]
[1734300070997,0.53079807,102720.0,102710.0,0.00063436]
[1734300071410,0.82013811,102720.0,102710.0,0.00063436]
[1734300071623,1.37770072,102720.0,102710.0,0.00063436]
[1734300071834,1.28836068,102720.0,102710.0,0.00063436]
[1734300072076,1.19021667,102720.0,102710.0,0.00063436]
[1734300072287,1.10087663,102720.0,102710.0,0.00063436]
[1734300072501,1.33004533,102720.0,102710.0,0.00063436]
[1734300072685,1.3398089,102720.0,102710.0,0.00063436]
[1734300072823,1.43304294,102720.0,102710.0,0.00063436]
[1734300073030,1.3437029,102720.0,102710.0,0.00063436]
[1734300073893,0.72395564,102720.0,102710.0,0.00063436]
[1734300074098,1.26327383,102720.0,102710.0,0.00063436]
[1734300074250,1.34997537,102720.0,102710.0,0.00063436]
[1734300075498,1.13317681,102720.0,102710.0,0.00063436]
[1734300077625,1.43931541,102720.0,102710.0,0.00063436]
[1734300077761,1.449202,102720.0,102710.0,0.00063436]
[1734300078185,1.53854204,102720.0,102710.0,0.00063436]
[1734300078655,1.449202,102720.0,102710.0,0.00063436]
[1734300079267,1.35014797,102720.0,102710.0,0.00063436]
[1734300080247,1.43948801,102720.0,102710.0,0.00063436]
[1734300081533,1.35014797,102720.0,102710.0,0.00063436]
[1734300081761,1.26080793,102720.0,102710.0,0.00063436]
[1734300081974,1.35014797,102720.0,102710.0,0.00063436]
[1734300082451,1.13334941,102720.0,102710.0,0.00063436]
[1734300082886,1.11084941,102720.0,102710.0,0.00063436]
[1734300083092,0.7679914,102720.0,102710.0,0.00063436]
[1734300083553,0.80996994,102720.0,102710.0,0.00063436]
[1734300084822,0.83296994,102720.0,102710.0,0.00063436]
[1734300087651,0.7436299,102720.0,102710.0,0.00063436]
[1734300087867,0.7426299,102720.0,102710.0,0.00063436]
[1734300089136,0.83196994,102720.0,102710.0,0.00063436]
[1734300089584,0.7426299,102720.0,102710.0,0.00063436]
[1734300090152,0.84168393,102720.0,102710.0,0.00063436]
[1734300090393,0.63028986,102720.0,102710.0,0.00063436]
[1734300090648,0.7196299,102720.0,102710.0,0.00063436]
[1734300091115,0.7696299,102720.0,102710.0,0.00063436]
[1734300091847,0.7426299,102720.0,102710.0,0.00063436]
[1734300092756,0.7926299,102720.0,102710.0,0.00063436]
[1734300093426,0.98102397,102720.0,102710.0,0.00063436]
[1734300093626,1.01765732,102720.0,102710.0,0.00063436]
[1734300093862,1.53745061,102720.0,102710.0,0.00063436]
[1734300094306,1.54252624,102720.0,102710.0,0.00063436]
[1734300097998,1.54252624,102720.0,102640.0,0.16814014]
[1734300097999,0.1146,102690.0,102640.0,0.16814014]
[1734300098201,0.12205403,102680.0,102670.0,0.194797]
[1734300098420,0.12205403,102680.0,102670.0,0.20088236]
[1734300099275,0.12205403,102680.0,102670.0,0.00608536]
[1734300099482,0.31738114,102680.0,102670.0,0.00608536]
[1734300100533,0.12260214,102680.0,102670.0,0.00608536]
[1734300100953,0.12260214,102680.0,102670.0,0.08478536]
[1734300101757,0.31738114,102680.0,102670.0,0.08487156]
[1734300102206,0.31738114,102680.0,102670.0,0.08487157]
[1734300103973,0.56679213,102680.0,102670.0,0.00617157]
[1734300104357,0.56679213,102680.0,102670.0,8.62e-05]
[1734300106320,0.47745209,102680.0,102670.0,8.62e-05]
[1734300109538,0.3270521,102680.0,102670.0,8.62e-05]
[1734300110172,0.3040521,102680.0,102670.0,8.62e-05]
[1734300111481,0.3270521,102680.0,102670.0,8.62e-05]
[1734300111708,0.3260521,102680.0,102670.0,8.62e-05]
[1734300112121,0.1312731,102680.0,102670.0,0.1948842]
[1734300113471,0.1312731,102680.0,102670.0,0.38892425]
[1734300113677,0.09860214,102680.0,102670.0,0.53892425]
[1734300114325,0.00054811,102680.0,102670.0,0.53892425]
[1734300114534,0.00054811,102680.0,102670.0,0.56192425]
[1734300115175,0.09960214,102680.0,102670.0,1.15127794]
[1734300115388,0.09960214,102680.0,102670.0,0.80335252]
[1734300115637,0.12260214,102680.0,102670.0,8.62e-05]
[1734300115819,0.23359786,102680.0,102670.0,8.62e-05]
[1734300116055,0.42837686,102680.0,102670.0,8.62e-05]
[1734300116263,0.55887046,102680.0,102670.0,8.62e-05]
[1734300118333,0.21803744,102680.0,102670.0,0.53892425]
[1734300118546,0.00054811,102680.0,102670.0,0.68950706]
[1734300118758,0.00054811,102680.0,102670.0,1.06950147]
[1734300118977,0.00054811,102680.0,102670.0,1.06952808]
[1734300119190,0.00054811,102680.0,102670.0,1.25457322]
[1734300119395,0.00054811,102680.0,102670.0,1.07987879]
[1734300120247,0.00054811,102680.0,102670.0,1.07989066]
[1734300120458,0.09960214,102680.0,102670.0,1.07989066]
[1734300120671,0.09960214,102680.0,102670.0,0.626298]
[1734300122867,0.09960214,102680.0,102670.0,0.75735863]
[1734300123082,0.09960214,102680.0,102670.0,0.626298]
[1734300123746,0.09960214,102680.0,102670.0,0.62628754]
[1734300124159,0.09977454,102680.0,102670.0,0.62628754]
[1734300124379,0.09927454,102680.0,102670.0,0.62628754]
[1734300125653,0.09927454,102680.0,102670.0,0.62627889]
[1734300126708,0.09927454,102680.0,102670.0,1.07973733]
[1734300126928,0.00022051,102680.0,102670.0,1.07973733]
[1734300128706,0.00022051,102680.0,102670.0,0.75731085]
[1734300130207,0.00022051,102680.0,102670.0,0.75724237]
[1734300130420,0.00022051,102680.0,102670.0,0.6262515]
[1734300131104,0.09927454,102680.0,102670.0,0.26341346]
[1734300131321,0.09927454,102680.0,102670.0,8.62e-05]
[1734300131322,0.12227454,102680.0,102670.0,8.62e-05]
[1734300131539,0.39305354,102680.0,102670.0,8.62e-05]
[1734300132603,0.64237338,102680.0,102670.0,8.62e-05]
[1734300132819,0.55495353,102680.0,102670.0,8.62e-05]
[1734300133222,0.58495353,102680.0,102670.0,8.62e-05]
[1734300134121,0.55495353,102680.0,102670.0,8.62e-05]
[1734300134374,0.194855,102640.0,102620.0,0.21831812]
[1734300134581,0.31694003,102630.0,102610.0,0.21840432]
[1734300134854,0.31694003,102630.0,102610.0,0.02608621]
[1734300134855,0.51182703,102630.0,102610.0,0.02608621]
[1734300135067,0.70671603,102630.0,102610.0,8.62e-05]
[1734300135305,0.31694003,102630.0,102610.0,8.62e-05]
[1734300135511,0.12205403,102630.0,102610.0,8.62e-05]
[1734300135952,0.12205403,102630.0,102610.0,0.0005862]
[1734300136865,0.12205403,102630.0,102610.0,0.1954982]
[1734300137083,0.12205403,102630.0,102610.0,0.31082125]
[1734300137309,0.12205403,102630.0,102620.0,0.46023305]
[1734300137527,0.01091932,102640.0,102630.0,0.22087401]
[1734300137738,0.10004323,102640.0,102630.0,0.31021405]
[1734300137957,0.09905403,102640.0,102630.0,0.31021405]
[1734300138389,0.09905403,102640.0,102630.0,0.22087401]
[1734300138851,0.12155403,102640.0,102630.0,0.46021405]
[1734300139070,0.0009888,102660.0,102640.0,0.41568601]
[1734300139288,0.0009888,102660.0,102640.0,0.56568101]
[1734300139289,0.09905403,102650.0,102640.0,0.56568101]
[1734300139509,0.09905403,102650.0,102640.0,0.50502105]
[1734300139956,0.09905403,102650.0,102640.0,0.41568101]
[1734300143022,0.09905403,102650.0,102640.0,0.65502105]
[1734300144608,0.0009888,102660.0,102650.0,0.22083601]
[1734300144815,0.10004283,102660.0,102650.0,0.46017605]
[1734300145028,0.0464724,102680.0,102660.0,0.41562401]
[1734300145237,0.09905403,102670.0,102660.0,0.41562401]
[1734300145891,0.09905403,102670.0,102660.0,0.41612401]
[1734300146319,0.12205403,102670.0,102660.0,0.41612401]
[1734300148980,0.12205403,102670.0,102660.0,0.56612401]
[1734300150287,0.09905403,102670.0,102660.0,0.56612401]
[1734300158185,0.09901403,102670.0,102660.0,0.56612401]
[1734300160182,0.09918663,102670.0,102660.0,0.56612401]
[1734300166514,0.19798663,102670.0,102660.0,0.0005]
[1734300166732,0.39278463,102670.0,102660.0,0.0005]
[1734300166937,0.45065409,102670.0,102660.0,0.0005]
[1734300170776,0.54225409,102670.0,102660.0,0.0005]
[1734300171523,0.66195381,102670.0,102660.0,0.0005]
[1734300171773,0.56625408,102670.0,102660.0,0.0005]
[1734300172511,0.56625408,102670.0,102660.0,0.0005862]
[1734300172765,0.54225409,102670.0,102660.0,0.0005862]
[1734300173008,0.194818,102660.0,102640.0,0.41137951]
[1734300173278,0.09905403,102650.0,102640.0,0.56155165]
[1734300175012,0.17675403,102650.0,102640.0,0.56155165]
[1734300175218,0.17675403,102650.0,102640.0,0.36669865]
[1734300176069,0.09905403,102650.0,102640.0,0.45603869]
[1734300176500,0.09905403,102650.0,102640.0,0.36669865]
[1734300176705,0.09905403,102650.0,102640.0,0.34069864]
[1734300177353,0.09905403,102650.0,102640.0,0.36669865]
[1734300177570,0.09905403,102650.0,102640.0,0.34069864]
[1734300177994,0.09899403,102650.0,102640.0,0.36669865]
[1734300178417,0.09899403,102650.0,102640.0,0.34069864]
[1734300178840,0.14439403,102650.0,102640.0,0.34069864]
[1734300179537,0.14439403,102650.0,102640.0,0.36669865]
[1734300179746,0.14439403,102650.0,102640.0,0.10128448]
[1734300179951,0.14439403,102650.0,102640.0,0.22084601]
[1734300180157,0.14439403,102650.0,102640.0,0.194846]
[1734300180565,0.14439403,102650.0,102640.0,0.22084601]
[1734300181897,0.2203565,102670.0,102650.0,0.22083601]
[1734300182082,0.09905403,102660.0,102650.0,0.41566201]
[1734300182522,0.2203565,102670.0,102660.0,0.194817]
[1734300182718,0.22781053,102670.0,102660.0,0.22081701]
[1734300182933,0.22682663,102670.0,102660.0,0.22081701]
[1734300183640,0.25682663,102670.0,102660.0,0.22081701]
[1734300184086,0.25682663,102670.0,102660.0,0.21081701]
[1734300184294,0.25682663,102670.0,102660.0,0.184817]
[1734300184517,0.25682663,102670.0,102650.0,0.5923734]
[1734300184518,0.27982663,102670.0,102650.0,0.61048001]
[1734300184738,0.09905403,102660.0,102650.0,0.56565301]
[1734300185573,0.09905403,102660.0,102650.0,0.65499305]
[1734300186443,0.09905403,102660.0,102650.0,0.56565301]
[1734300189248,0.09905403,102660.0,102640.0,0.82910798]
[1734300189463,0.1276,102650.0,102640.0,0.02608621]
[1734300189734,0.22665403,102650.0,102640.0,0.22094121]
[1734300190617,0.22665403,102650.0,102640.0,8.62e-05]
[1734300190618,0.24965403,102650.0,102640.0,8.62e-05]
[1734300191933,0.44449003,102650.0,102640.0,8.62e-05]
[1734300192165,0.24965403,102650.0,102640.0,8.62e-05]
[1734300193874,0.44449003,102650.0,102640.0,8.62e-05]
[1734300194785,0.44449003,102650.0,102620.0,0.36493062]
[1734300195003,0.20085403,102640.0,102620.0,0.2209391]
[1734300195222,0.20085403,102640.0,102620.0,0.6107041]
[1734300195437,0.20085403,102640.0,102630.0,0.22087401]
[1734300195658,0.09905403,102640.0,102630.0,0.31021405]
[1734300195877,0.2433646,102650.0,102640.0,0.22085501]
[1734300196088,0.34241863,102650.0,102640.0,0.22085501]
[1734300196305,0.34122663,102650.0,102640.0,0.22085501]
[1734300198672,0.296657,102640.0,102620.0,0.0260551]
[1734300198889,0.12205403,102630.0,102620.0,0.0260551]
[1734300199109,0.12205403,102630.0,102610.0,0.1949]
[1734300199334,0.17085403,102630.0,102620.0,0.194893]
[1734300202450,0.25355403,102630.0,102620.0,0.194893]
[1734300203327,0.23055403,102630.0,102620.0,0.194893]
[1734300205808,0.25355403,102630.0,102620.0,0.194893]
[1734300206675,0.25355403,102630.0,102620.0,0.1949792]
[1734300207744,0.12205403,102630.0,102620.0,0.1949792]
[1734300207946,0.12205403,102630.0,102620.0,8.62e-05]
[1734300208175,0.16745403,102630.0,102620.0,8.62e-05]
[1734300208609,0.16745403,102630.0,102620.0,0.1949792]
[1734300210662,0.16745403,102630.0,102620.0,8.62e-05]
[1734300211074,0.16745403,102630.0,102620.0,0.1949792]
[1734300211514,0.16745403,102630.0,102620.0,8.62e-05]
[1734300211934,0.16745403,102630.0,102620.0,0.1949792]
[1734300212856,0.16745403,102630.0,102620.0,8.62e-05]
[1734300213273,0.16745403,102630.0,102620.0,0.1949792]
[1734300214587,0.16725403,102630.0,102620.0,0.1949792]
[1734300214803,0.472433,102640.0,102620.0,0.1949792]
[1734300214804,0.0827,102640.0,102620.0,0.43431924]
[1734300215039,0.09905403,102640.0,102630.0,0.08934004]
[1734300215712,0.1292612,102650.0,102640.0,0.194855]
[1734300215930,0.10021523,102650.0,102640.0,0.194855]
[1734300216145,0.09922663,102650.0,102640.0,0.194855]
[1734300216738,0.09922663,102650.0,102640.0,0.189855]
[1734300217213,0.0001726,102650.0,102640.0,0.42919504]
[1734300218307,0.0001726,102650.0,102640.0,0.51651758]
[1734300218724,0.0001726,102650.0,102640.0,0.42919504]
[1734300218936,0.0001726,102650.0,102640.0,0.51651758]
[1734300219581,0.0001726,102650.0,102640.0,0.42919504]
[1734300221597,0.0001726,102650.0,102630.0,0.389723]
[1734300221598,0.22662663,102650.0,102630.0,0.389723]
[1734300221810,0.09905403,102640.0,102630.0,0.389723]
[1734300222460,0.12205403,102640.0,102620.0,0.47717574]
[1734300222670,0.023,102630.0,102620.0,0.3898532]
[1734300222881,0.12205403,102630.0,102620.0,0.3898532]
[1734300223942,0.12205403,102630.0,102620.0,0.5398532]
[1734300226364,0.12205403,102630.0,102620.0,0.3449672]
[1734300226572,0.86205403,102630.0,102620.0,0.3449672]
[1734300229081,1.16205403,102630.0,102620.0,0.3449672]
[1734300229508,1.16205403,102630.0,102620.0,0.43430724]
[1734300230999,1.16205403,102630.0,102620.0,0.3449672]
[1734300231215,1.13905403,102630.0,102620.0,0.3449672]
[1734300232297,1.21885403,102630.0,102620.0,0.3449672]
[1734300232728,1.21885403,102630.0,102620.0,0.1949672]
[1734300232937,1.21885403,102630.0,102620.0,0.3449672]
[1734300233159,1.13905403,102630.0,102620.0,0.3449672]
[1734300234589,1.13905403,102630.0,102620.0,0.43430724]
[1734300236289,1.13905403,102630.0,102620.0,0.3449672]
[1734300236716,1.13905403,102630.0,102620.0,0.52168293]
[1734300236929,0.39905403,102630.0,102620.0,0.08934004]
[1734300237525,0.39905403,102630.0,102620.0,0.28422304]
[1734300237993,0.3,102630.0,102620.0,0.28422304]
[1734300238810,0.3,102630.0,102620.0,0.41528658]
[1734300239028,0.3,102630.0,102620.0,0.88777618]
[1734300239237,0.3,102630.0,102620.0,0.77830608]
[1734300239538,0.3,102630.0,102620.0,1.21158315]
[1734300239681,0.3,102630.0,102620.0,1.11303176]
[1734300239879,0.3,102630.0,102620.0,1.37712319]
[1734300240090,0.3,102630.0,102620.0,1.32712319]
[1734300240320,0.3,102630.0,102620.0,0.79843769]
[1734300240491,0.29995,102630.0,102620.0,0.194883]
[1734300240735,0.39900403,102630.0,102620.0,0.194883]
[1734300243030,0.39900403,102630.0,102620.0,0.1949692]
[1734300247137,0.48150403,102630.0,102620.0,8.62e-05]
[1734300247344,0.74777803,102630.0,102620.0,8.62e-05]
[1734300250772,0.55290403,102630.0,102620.0,8.62e-05]
[1734300251680,0.55290403,102630.0,102620.0,0.1949792]
[1734300251886,0.52990403,102630.0,102620.0,0.1949792]
[1734300253417,0.29995,102630.0,102620.0,0.43431924]
[1734300254482,0.3001224,102630.0,102620.0,0.43431924]
[1734300255092,0.3001224,102630.0,102620.0,0.3449792]
[1734300255799,0.52107643,102630.0,102620.0,0.3449792]
[1734300256013,0.52102643,102630.0,102620.0,0.1949792]
[1734300256900,0.52102643,102630.0,102620.0,8.62e-05]
[1734300259886,0.71590043,102630.0,102620.0,8.62e-05]
[1734300260332,0.71590043,102630.0,102600.0,0.26507717]
[1734300260551,0.09905403,102620.0,102610.0,0.194901]
[1734300265450,0.09905403,102620.0,102610.0,0.1949872]
[1734300270196,0.17565403,102620.0,102610.0,0.1949872]
[1734300270403,0.17565403,102620.0,102610.0,8.62e-05]
[1734300270622,0.41554703,102620.0,102610.0,8.62e-05]
[1734300272117,0.22065403,102620.0,102610.0,8.62e-05]
[1734300273815,0.09905403,102620.0,102610.0,8.62e-05]
[1734300275552,0.09905403,102620.0,102610.0,0.1949982]
[1734300276415,0.09905403,102620.0,102610.0,8.62e-05]
[1734300279399,0.09905403,102620.0,102610.0,1.0008652]
[1734300280258,0.29394703,102620.0,102610.0,1.0008652]
[1734300282012,0.09905403,102620.0,102610.0,1.0008652]
[1734300283297,0.29394703,102620.0,102610.0,1.0008652]
[1734300283724,0.29494703,102620.0,102610.0,1.0008652]
[1734300287727,0.30508101,102620.0,102610.0,1.0008652]
[1734300290776,0.50902105,102620.0,102610.0,1.0008652]
[1734300290992,0.59614141,102620.0,102610.0,1.0008652]
[1734300291226,0.80946269,102620.0,102610.0,1.0008652]
[1734300291657,0.63522196,102620.0,102610.0,1.0008652]
[1734300292289,0.78427599,102620.0,102610.0,1.0008652]
[1734300292729,0.93427599,102620.0,102610.0,1.0008652]
[1734300292969,0.884276,102620.0,102610.0,1.0008652]
[1734300293192,0.92783618,102620.0,102610.0,1.0008652]
[1734300293404,0.66647508,102620.0,102610.0,1.0008652]
[1734300293619,0.88400462,102620.0,102610.0,1.0008652]
[1734300294097,0.78495347,102620.0,102610.0,1.0008652]
[1734300294542,0.81495347,102620.0,102610.0,1.0008652]
[1734300295411,0.98882524,102620.0,102610.0,1.0008652]
[1734300295828,1.03882524,102620.0,102610.0,1.0008652]
[1734300296039,1.11922913,102620.0,102610.0,0.91307946]
[1734300296265,0.95169671,102620.0,102610.0,0.91307946]
[1734300296452,0.9207486,102620.0,102610.0,0.91307946]
[1734300296930,0.9707486,102620.0,102610.0,0.91307946]
[1734300297351,1.0576338,102620.0,102610.0,0.91307946]
[1734300298457,0.88362432,102620.0,102610.0,0.91307946]
[1734300299922,0.98267835,102620.0,102610.0,0.91307946]
[1734300300581,1.03177835,102620.0,102610.0,0.80231467]
[1734300300793,1.10867835,102620.0,102610.0,0.72421467]
[1734300301009,1.00962432,102620.0,102610.0,0.69594866]
[1734300301430,1.00963197,102620.0,102610.0,0.69594866]
[1734300302090,1.1833592,102620.0,102610.0,0.69594866]
[1734300302559,1.1833592,102620.0,102610.0,0.64778066]
[1734300302782,1.00963197,102620.0,102610.0,0.64778066]
[1734300302995,0.87933655,102620.0,102610.0,0.64778066]
[1734300304551,0.46108101,102620.0,102610.0,0.64778066]
[1734300306236,0.48408101,102620.0,102610.0,0.64778066]
[1734300310604,0.62342105,102620.0,102610.0,0.64778066]
[1734300311761,0.72342105,102620.0,102610.0,0.64778066]
[1734300311968,0.94058008,102620.0,102610.0,0.64778066]
[1734300312407,1.11430731,102620.0,102610.0,0.64786686]
[1734300312614,0.94058008,102620.0,102610.0,0.64786686]
[1734300313079,0.81028466,102620.0,102610.0,0.49012907]
[1734300314343,0.81034474,102620.0,102610.0,0.49012907]
[1734300314546,0.94073028,102620.0,102610.0,0.49012907]
[1734300316274,0.98053502,102620.0,102610.0,0.49012907]
[1734300316487,0.94073028,102620.0,102610.0,0.49012907]
[1734300318526,1.11457767,102620.0,102610.0,0.49012907]
[1734300318739,0.94078485,102620.0,102610.0,0.49012907]
[1734300318963,1.11467046,102620.0,102610.0,0.49012907]
[1734300319171,0.94078183,102620.0,102610.0,0.49012907]
[1734300320481,0.81036536,102620.0,102610.0,0.49012907]
[1734300320689,0.94078183,102620.0,102610.0,0.49012907]
[1734300320909,0.69802532,102620.0,102610.0,0.49012907]
[1734300321118,0.61108101,102620.0,102610.0,0.49012907]
[1734300322823,0.63408101,102620.0,102610.0,0.49012907]
[1734300323033,0.72102532,102620.0,102610.0,0.49012907]
[1734300323245,0.63408101,102620.0,102610.0,0.49012907]
[1734300323465,0.65360049,102620.0,102610.0,0.49012907]
[1734300323918,0.37760049,102620.0,102610.0,0.49012907]
[1734300326301,0.54964053,102620.0,102610.0,0.49012907]
[1734300326507,0.46030049,102620.0,102610.0,0.49012907]
[1734300328170,0.54732983,102620.0,102610.0,0.49012907]
[1734300328715,0.44511035,102620.0,102610.0,0.49012907]
[1734300330967,0.44968101,102620.0,102610.0,0.49012907]
[1734300331720,0.54053957,102620.0,102610.0,0.49012907]
[1734300335326,0.51753957,102620.0,102610.0,0.49012907]
[1734300335952,0.43051023,102620.0,102610.0,0.49012907]
[1734300336378,0.43051023,102620.0,102610.0,0.61392907]
[1734300338581,0.43051023,102620.0,102610.0,0.56522907]
[1734300338816,0.43051023,102620.0,102610.0,0.49012907]
[1734300341001,0.43312669,102620.0,102610.0,0.49012907]
[1734300341474,0.43312669,102620.0,102610.0,0.57192907]
[1734300345093,0.34152669,102620.0,102610.0,0.57192907]
[1734300348639,0.14663369,102620.0,102610.0,0.57192907]
[1734300349266,0.34152669,102620.0,102610.0,0.57192907]
[1734300349893,0.14663369,102620.0,102610.0,0.76684107]
[1734300350109,0.13667211,102620.0,102610.0,0.76684107]
[1734300350327,0.13667211,102620.0,102610.0,0.91684107]
[1734300350541,0.13667211,102620.0,102610.0,1.05278111]
[1734300350754,0.13667211,102620.0,102610.0,0.96344107]
[1734300351383,0.03761808,102620.0,102610.0,1.05278111]
[1734300351825,0.00761808,102620.0,102610.0,1.05278111]
[1734300352668,0.00761808,102620.0,102610.0,1.14020473]
[1734300352908,0.00761808,102620.0,102610.0,1.19020473]
[1734300353327,0.00761808,102620.0,102610.0,1.7927886]
[1734300353543,0.00761808,102620.0,102610.0,1.96763585]
[1734300353755,0.00761808,102620.0,102610.0,1.79278861]
[1734300353976,0.00761808,102620.0,102610.0,1.81578861]
[1734300354217,0.00761808,102620.0,102610.0,1.99034395]
[1734300354426,0.3010724,102630.0,102620.0,0.3749]
[1734300354635,0.3010724,102630.0,102620.0,1.08730002]
[1734300354846,0.07849048,102630.0,102620.0,2.0662127]
[1734300355051,0.07849048,102630.0,102620.0,2.27915125]
[1734300355298,0.07849048,102630.0,102620.0,1.56589846]
[1734300355509,0.0011726,102650.0,102640.0,0.1]
[1734300355718,0.0011726,102650.0,102640.0,0.73500242]
[1734300355719,0.0021546,102650.0,102640.0,0.73500242]
[1734300355953,0.0021546,102650.0,102640.0,1.27896506]
[1734300356157,0.0011726,102650.0,102640.0,1.27896506]
[1734300356370,0.0011726,102650.0,102640.0,0.82582564]
[1734300356575,0.0011726,102650.0,102640.0,0.86602564]
[1734300356841,0.001,102660.0,102650.0,0.05]
[1734300357066,0.001,102660.0,102650.0,0.4658073]
[1734300357481,0.001,102660.0,102650.0,0.74998334]
[1734300357705,0.001,102660.0,102650.0,0.77298334]
[1734300357946,0.001,102660.0,102650.0,0.88360619]
[1734300358160,0.001,102660.0,102650.0,1.60624622]
[1734300358374,0.001,102660.0,102650.0,1.15433419]
[1734300359201,0.001,102660.0,102650.0,1.06717085]
[1734300359411,0.001,102660.0,102650.0,0.83704878]
[1734300360230,0.00688913,102660.0,102650.0,0.83704878]
[1734300360441,0.001,102660.0,102650.0,0.83704878]
[1734300360665,0.00688913,102660.0,102650.0,0.44262123]
[1734300360868,0.001,102660.0,102650.0,0.46962123]
[1734300361076,0.00688913,102660.0,102650.0,0.46962123]
[1734300361515,0.00688913,102660.0,102650.0,0.57327604]
[1734300361900,0.00688913,102660.0,102650.0,0.58324023]
[1734300362149,0.00688913,102660.0,102650.0,0.60301001]
[1734300362551,0.00188913,102660.0,102650.0,0.68111001]
[1734300362685,0.00548913,102660.0,102650.0,0.68111001]
[1734300367531,0.00148913,102660.0,102650.0,0.68111001]
[1734300367736,0.00532135,102660.0,102650.0,0.68111001]
[1734300367959,0.00532135,102660.0,102650.0,0.70490631]
[1734300370083,0.00532135,102660.0,102650.0,0.66580631]
[1734300370753,0.00532135,102660.0,102650.0,0.61580631]
[1734300370965,0.00532135,102660.0,102650.0,0.61589251]
[1734300371360,0.00549375,102660.0,102650.0,0.61589251]
[1734300372300,0.00549375,102660.0,102650.0,0.53779251]
[1734300372503,0.00549375,102660.0,102650.0,0.48426224]
[1734300376790,0.00549375,102660.0,102650.0,0.50384025]
[1734300382699,0.00549375,102660.0,102650.0,0.66934025]
[1734300385322,0.0011726,102670.0,102660.0,0.3264]
[1734300385539,0.0011726,102670.0,102660.0,0.79895111]